bitfinex-derivatives/quotes_BTCF0:USTF0_20250406
["timestamp","ask_amount","ask_price","bid_price","bid_amount"]
[1743902822363,1.60132113,83700.0,83699.0,0.45239251]
[1743902822569,1.60132113,83700.0,83699.0,0.45347251]
[1743902822876,1.60132113,83700.0,83699.0,0.18347251]
[1743902823079,1.60132113,83700.0,83699.0,0.18239251]
[1743902823379,1.52652281,83700.0,83699.0,0.18239251]
[1743902823579,1.52652281,83700.0,83699.0,0.18347251]
[1743902823969,1.52652281,83700.0,83699.0,0.16141121]
[1743902824180,1.59012281,83700.0,83699.0,0.16141121]
[1743902824773,1.64428281,83700.0,83699.0,0.16141121]
[1743902825279,1.59012281,83700.0,83699.0,0.16141121]
[1743902825479,1.64424281,83700.0,83699.0,0.16141121]
[1743902826276,1.72790661,83700.0,83699.0,0.12821121]
[1743902827078,1.72790661,83700.0,83699.0,0.41346295]
[1743902828880,1.72790661,83700.0,83699.0,0.41238295]
[1743902829783,1.72790661,83700.0,83699.0,0.12713121]
[1743902829972,1.72850662,83700.0,83699.0,0.12713121]
[1743902830678,1.72834662,83700.0,83699.0,0.12713121]
[1743902831081,1.72834662,83700.0,83699.0,0.12821121]
[1743902833181,1.72834662,83700.0,83699.0,0.12726999]
[1743902834573,1.72834662,83700.0,83699.0,0.12842999]
[1743902835784,1.72834662,83700.0,83699.0,0.04360519]
[1743902835974,0.0836667,83697.0,83696.0,0.28525174]
[1743902836983,0.1448667,83697.0,83696.0,0.28525174]
[1743902837377,0.1986267,83697.0,83696.0,0.28525174]
[1743902837683,0.3986267,83697.0,83696.0,0.29436834]
[1743902839076,0.0836717,83692.0,83688.0,0.35704905]
[1743902839277,0.4444747,83689.0,83688.0,0.35812905]
[1743902840277,0.6444747,83689.0,83688.0,0.35812905]
[1743902840587,0.0836827,83681.0,83680.0,0.00017928]
[1743902840784,0.4982827,83681.0,83680.0,0.00017928]
[1743902841482,0.5623827,83681.0,83680.0,0.00017928]
[1743902841692,0.0836857,83678.0,83677.0,0.35704905]
[1743902841881,0.0836857,83678.0,83677.0,0.36614414]
[1743902843383,0.2836857,83678.0,83677.0,0.36614414]
[1743902843578,0.0836927,83671.0,83670.0,0.4299818]
[1743902843885,0.4444927,83671.0,83670.0,0.4299818]
[1743902844073,0.4444927,83671.0,83670.0,0.43900481]
[1743902844388,0.0837078,83659.0,83658.0,0.1255533]
[1743902844591,0.4983878,83659.0,83658.0,0.1255533]
[1743902844784,0.0837068,83657.0,83656.0,0.0418537]
[1743902844981,0.0844668,83657.0,83656.0,0.0426137]
[1743902845488,0.0844668,83657.0,83656.0,0.0727137]
[1743902845786,0.1145668,83657.0,83656.0,0.11461519]
[1743902846591,0.3145668,83657.0,83656.0,0.11461519]
[1743902847576,0.3145668,83657.0,83656.0,0.05161519]
[1743902847778,0.3145668,83657.0,83656.0,0.00976149]
[1743902847990,0.3145668,83657.0,83656.0,0.02682868]
[1743902851888,0.3145668,83657.0,83656.0,0.05852868]
[1743902853000,0.3325268,83657.0,83656.0,0.05776868]
[1743902853194,0.3145668,83657.0,83656.0,0.05776868]
[1743902853394,0.3325268,83657.0,83656.0,0.05776868]
[1743902853589,0.3325268,83657.0,83656.0,0.05772026]
[1743902853795,0.0837138,83650.0,83649.0,0.0301382]
[1743902853992,0.0837138,83650.0,83649.0,0.0001382]
[1743902854394,0.0837138,83650.0,83649.0,0.09269938]
[1743902854597,0.1453138,83650.0,83649.0,0.09269938]
[1743902854796,0.3473138,83650.0,83649.0,0.09269938]
[1743902855001,0.3481138,83650.0,83649.0,0.09349938]
[1743902855398,0.3501138,83650.0,83649.0,0.09349938]
[1743902856992,0.3501138,83650.0,83649.0,0.12629938]
[1743902857497,0.3501138,83650.0,83649.0,0.04258458]
[1743902858001,0.3501138,83650.0,83649.0,0.04178458]
[1743902858197,0.3501138,83650.0,83649.0,0.04254458]
[1743902858402,0.3501138,83650.0,83644.0,0.0304]
[1743902858403,0.0837188,83645.0,83644.0,0.0304]
[1743902858604,0.1381188,83645.0,83644.0,0.0304]
[1743902858807,0.1381188,83645.0,83644.0,0.031]
[1743902859002,0.1381188,83645.0,83644.0,0.0624]
[1743902859199,0.1682188,83645.0,83644.0,0.0624]
[1743902859598,0.3682188,83645.0,83644.0,0.0624]
[1743902860907,0.3692188,83645.0,83644.0,0.0624]
[1743902861498,0.3692188,83645.0,83644.0,0.10415203]
[1743902861799,0.3712188,83645.0,83644.0,0.10415203]
[1743902862101,0.7320188,83645.0,83644.0,0.10415203]
[1743902862307,0.7320188,83645.0,83644.0,0.10355203]
[1743902862707,0.3712188,83645.0,83644.0,0.10419203]
[1743902862900,0.7320188,83645.0,83644.0,0.10419203]
[1743902863302,0.7320188,83645.0,83644.0,0.10355203]
[1743902865603,0.3712188,83645.0,83644.0,0.10355203]
[1743902865804,0.7320188,83645.0,83644.0,0.12087756]
[1743902866008,0.7320188,83645.0,83644.0,0.12019756]
[1743902866324,0.7320188,83645.0,83644.0,0.12021262]
[1743902868212,0.7320188,83645.0,83644.0,0.12023173]
[1743902873222,0.7809788,83645.0,83644.0,0.12023173]
[1743902873425,0.7630188,83645.0,83644.0,0.12023173]
[1743902873926,0.7809788,83645.0,83644.0,0.02577058]
[1743902874124,0.7630188,83645.0,83644.0,0.02577058]
[1743902875410,0.7809788,83645.0,83644.0,0.02577058]
[1743902875814,0.7630188,83645.0,83644.0,0.02577058]
[1743902876018,0.7809788,83645.0,83644.0,0.05817058]
[1743902876218,0.7630188,83645.0,83644.0,0.05817058]
[1743902876425,0.7630188,83645.0,83644.0,0.09047058]
[1743902877133,0.7809788,83645.0,83644.0,0.09047058]
[1743902877431,0.7809788,83645.0,83644.0,0.07375203]
[1743902877633,0.7809788,83645.0,83644.0,0.09047731]
[1743902877836,0.7630188,83645.0,83644.0,0.09047731]
[1743902878027,0.7809788,83645.0,83644.0,0.09047731]
[1743902878329,0.7807788,83645.0,83644.0,0.09047731]
[1743902878531,0.7628188,83645.0,83644.0,0.09047731]
[1743902879030,0.7628188,83645.0,83644.0,0.09107731]
[1743902881334,0.4020188,83645.0,83644.0,0.09107731]
[1743902881539,0.7628188,83645.0,83644.0,0.09107731]
[1743902882334,0.7628188,83645.0,83644.0,0.07435203]
[1743902882534,0.81655712,83645.0,83644.0,0.09127247]
[1743902882740,0.87003712,83645.0,83644.0,0.09127247]
[1743902883139,0.50923712,83645.0,83644.0,0.09127247]
[1743902883437,0.87003712,83645.0,83644.0,0.09127247]
[1743902883939,0.50923712,83645.0,83644.0,0.09127247]
[1743902884139,0.87003712,83645.0,83644.0,0.09127247]
[1743902886040,0.50923712,83645.0,83644.0,0.09127247]
[1743902886341,0.87003712,83645.0,83644.0,0.0914084]
[1743902886838,0.87003712,83645.0,83644.0,0.09081992]
[1743902887341,0.87003712,83645.0,83644.0,0.02611992]
[1743902888037,0.0837268,83637.0,83636.0,0.00017928]
[1743902888347,0.4451668,83637.0,83636.0,0.00077928]
[1743902889032,0.5095668,83637.0,83636.0,0.00077928]
[1743902889328,0.7095668,83637.0,83636.0,0.00177928]
[1743902889528,0.7095668,83637.0,83636.0,0.00117928]
[1743902890244,0.3487668,83637.0,83636.0,0.00117928]
[1743902890544,0.7095668,83637.0,83636.0,0.00185928]
[1743902890743,0.7095668,83637.0,83636.0,0.00117928]
[1743902891246,0.7095668,83637.0,83636.0,0.00896945]
[1743902892842,0.7095668,83637.0,83633.0,0.0329]
[1743902892843,0.0837298,83634.0,83633.0,0.0329]
[1743902893147,0.0843698,83634.0,83633.0,0.00064]
[1743902893444,0.1023298,83634.0,83633.0,0.00064]
[1743902894048,0.3651298,83634.0,83633.0,0.00064]
[1743902894545,0.3651298,83634.0,83633.0,0.0094517]
[1743902894950,0.3651298,83634.0,83633.0,0.0104517]
[1743902895148,0.3651298,83634.0,83633.0,0.0951825]
[1743902895847,0.4182498,83634.0,83633.0,0.0951825]
[1743902896248,0.4182498,83634.0,83633.0,0.1564825]
[1743902896655,0.4301278,83634.0,83633.0,0.1564825]
[1743902897551,0.4301278,83634.0,83633.0,0.0114517]
[1743902897742,0.4616278,83634.0,83633.0,0.0108117]
[1743902898849,0.4616278,83634.0,83633.0,0.0098117]
[1743902899045,0.4666278,83634.0,83633.0,0.0088117]
[1743902899258,0.4716278,83634.0,83633.0,0.0006]
[1743902899561,0.0837328,83631.0,83630.0,0.1486335]
[1743902899746,0.0843728,83631.0,83630.0,0.1492335]
[1743902899947,0.0843728,83631.0,83630.0,0.16620008]
[1743902900555,0.1157728,83631.0,83630.0,0.16620008]
[1743902901147,0.3687728,83631.0,83630.0,0.16620008]
[1743902901350,0.20464,83631.0,83630.0,0.17519937]
[1743902901544,0.25784,83631.0,83630.0,0.17519937]
[1743902901956,0.20964,83631.0,83630.0,0.17519937]
[1743902902160,0.26284,83631.0,83630.0,0.11029937]
[1743902902365,0.3465728,83631.0,83630.0,0.11029937]
[1743902902554,0.3465728,83631.0,83630.0,0.20259937]
[1743902902860,0.3779728,83631.0,83630.0,0.20259937]
[1743902903060,0.4090728,83631.0,83630.0,0.20259937]
[1743902904463,0.4050728,83631.0,83630.0,0.20259937]
[1743902904651,0.4090728,83631.0,83630.0,0.2027297]
[1743902904965,0.4090728,83631.0,83630.0,0.48901605]
[1743902906663,0.4090728,83631.0,83630.0,0.48891109]
[1743902907363,0.4090728,83631.0,83630.0,0.48891128]
[1743902912464,0.4088728,83631.0,83630.0,0.48891128]
[1743902914066,0.4088728,83631.0,83630.0,0.20262493]
[1743902915655,0.4088728,83631.0,83624.0,0.0418695]
[1743902915656,0.0837488,83615.0,83603.0,0.3608]
[1743902915855,0.4975088,83615.0,83614.0,0.30745986]
[1743902916057,0.41464,83615.0,83614.0,0.39120966]
[1743902916257,0.4984288,83615.0,83614.0,0.40025596]
[1743902916659,0.6984288,83615.0,83614.0,0.46425596]
[1743902917059,0.6454288,83615.0,83614.0,0.46425596]
[1743902917266,0.6983888,83615.0,83614.0,0.46425596]
[1743902917562,0.3375888,83615.0,83614.0,0.46425596]
[1743902917959,0.2876288,83615.0,83614.0,0.46425596]
[1743902918159,0.3405888,83615.0,83614.0,0.47034101]
[1743902918755,0.3425888,83615.0,83614.0,0.47034101]
[1743902921569,0.3756888,83615.0,83614.0,0.1574761]
[1743902923965,0.3227288,83615.0,83614.0,0.1574761]
[1743902924165,0.3755288,83615.0,83614.0,0.1574761]
[1743902927779,0.3755288,83615.0,83614.0,0.1739815]
[1743902929074,0.3755288,83615.0,83614.0,0.17399851]
[1743902932272,0.4074288,83615.0,83614.0,0.17399851]
[1743902932471,0.4074288,83615.0,83614.0,0.14079851]
[1743902932777,0.4074288,83615.0,83614.0,0.14078425]
[1743902933977,0.3546288,83615.0,83614.0,0.14078425]
[1743902934181,0.4071888,83615.0,83614.0,0.14078425]
[1743902938182,0.4071888,83615.0,83614.0,0.39078425]
[1743902938376,0.4071888,83615.0,83614.0,0.38080443]
[1743902938576,0.4071888,83615.0,83614.0,0.17320443]
[1743902939484,0.4071888,83615.0,83614.0,0.43320443]
[1743902940278,0.4071888,83615.0,83614.0,0.17320443]
[1743902941385,0.4071888,83615.0,83614.0,0.17324919]
[1743902941892,0.4071888,83615.0,83614.0,0.14084919]
[1743902946688,0.51448712,83615.0,83614.0,0.14084919]
[1743902947089,0.51448712,83615.0,83614.0,0.14088883]
[1743902948990,0.51448712,83615.0,83614.0,0.14084906]
[1743902950690,0.51448712,83615.0,83614.0,0.1242761]
[1743902951086,0.4071888,83615.0,83614.0,0.1242761]
[1743902954883,0.5505214,83615.0,83614.0,0.1242761]
[1743902958295,0.4979614,83615.0,83614.0,0.1242761]
[1743902958494,0.5500414,83615.0,83614.0,0.1242761]
[1743902958990,0.5500414,83615.0,83614.0,0.1235961]
[1743902959287,0.5500414,83615.0,83614.0,0.3735961]
[1743902959494,0.5500414,83615.0,83614.0,0.1235961]
[1743902960194,0.5500414,83615.0,83614.0,0.1554961]
[1743902960793,0.5500414,83615.0,83614.0,0.1560961]
[1743902960994,0.5500414,83615.0,83614.0,0.1554961]
[1743902961594,0.5500414,83615.0,83614.0,0.1560961]
[1743902962001,0.5500414,83615.0,83614.0,0.1241961]
[1743902962194,0.5500414,83615.0,83614.0,0.1235961]
[1743902962394,0.5500414,83615.0,83614.0,0.1241961]
[1743902965198,0.4067088,83615.0,83614.0,0.3941961]
[1743902965500,0.4067088,83615.0,83614.0,0.1241961]
[1743902965797,0.3546288,83615.0,83614.0,0.3741961]
[1743902965998,0.4065888,83615.0,83614.0,0.1241961]
[1743902966593,0.20588,83615.0,83614.0,0.1241961]
[1743902966794,0.20588,83615.0,83614.0,0.9515961]
[1743902967098,0.20588,83615.0,83614.0,1.3123961]
[1743902967292,0.205,83615.0,83614.0,1.3123961]
[1743902967497,0.1433326,83616.0,83615.0,0.0837488]
[1743902967702,0.1434126,83616.0,83615.0,0.3943488]
[1743902967896,0.1434126,83616.0,83615.0,0.9617488]
[1743902968397,0.1434126,83616.0,83615.0,0.8117488]
[1743902968893,0.05196,83625.0,83622.0,0.0837418]
[1743902969084,0.05196,83625.0,83622.0,0.7245418]
[1743902969700,0.10765257,83624.0,83623.0,0.0837408]
[1743902970001,0.10765257,83624.0,83623.0,0.3537408]
[1743902970298,0.10845257,83624.0,83623.0,0.4149408]
[1743902971501,0.10845257,83624.0,83623.0,0.8323408]
[1743902971702,0.10765257,83624.0,83623.0,0.8323408]
[1743902972090,0.11065257,83624.0,83623.0,0.8323408]
[1743902972286,0.11365257,83624.0,83623.0,0.8323408]
[1743902972699,0.11365257,83624.0,83623.0,0.84888153]
[1743902973097,8e-05,83627.0,83626.0,0.0837378]
[1743902973401,0.052,83628.0,83627.0,0.0837368]
[1743902973597,0.052,83628.0,83627.0,0.37027753]
[1743902973802,0.052,83628.0,83627.0,0.43417753]
[1743902974295,8e-05,83629.0,83628.0,0.0837358]
[1743902974502,0.10742874,83635.0,83634.0,0.0837298]
[1743902974503,0.15942874,83635.0,83634.0,0.0837298]
[1743902974700,0.16022874,83635.0,83634.0,0.34087053]
[1743902974901,0.15942874,83635.0,83634.0,0.10087053]
[1743902975301,0.15942874,83635.0,83634.0,0.16417053]
[1743902975703,0.16442874,83635.0,83634.0,0.39417053]
[1743902975897,0.16942874,83635.0,83634.0,0.39517053]
[1743902976097,0.36942874,83635.0,83634.0,0.39517053]
[1743902977504,0.31742874,83635.0,83634.0,0.39517053]
[1743902977703,0.31742874,83635.0,83634.0,0.81257053]
[1743902978302,0.21,83635.0,83634.0,0.81257053]
[1743902978500,0.01,83635.0,83634.0,0.82910818]
[1743902978804,0.01,83635.0,83634.0,0.82942443]
[1743902980904,0.01,83635.0,83634.0,0.82934792]
[1743902987112,0.01,83635.0,83634.0,0.79834792]
[1743902989111,0.01,83635.0,83634.0,1.14261027]
[1743902991315,0.01,83635.0,83634.0,0.91261027]
[1743902991704,0.21,83635.0,83634.0,0.91261027]
[1743902991911,0.2108,83635.0,83634.0,0.91261027]
[1743902993213,0.2108,83635.0,83634.0,0.91250289]
[1743902993406,0.2108,83635.0,83634.0,0.91250742]
[1743902995211,0.2751,83635.0,83634.0,0.91250742]
[1743902997015,0.2751,83635.0,83634.0,0.91253654]
[1743902997211,0.2751,83635.0,83634.0,1.11103654]
[1743902997514,0.2751,83635.0,83634.0,0.55173654]
[1743902997718,0.2751,83635.0,83634.0,0.84173654]
[1743902998213,0.2108,83635.0,83634.0,0.84173654]
[1743902998413,0.21,83635.0,83634.0,0.84173654]
[1743902998600,0.00017928,83639.0,83638.0,0.0837258]
[1743902998800,0.00017928,83639.0,83638.0,0.37043254]
[1743902999000,0.3608,83655.0,83654.0,0.0837098]
[1743902999204,0.0328,83655.0,83654.0,0.34041654]
[1743902999511,0.0328,83655.0,83654.0,0.70121654]
[1743902999706,0.21410111,83665.0,83657.0,0.0837068]
[1743902999911,0.05184,83664.0,83657.0,0.36041354]
[1743903000108,8e-05,83663.0,83657.0,0.36041354]
[1743903000416,0.0303,83663.0,83662.0,0.0837018]
[1743903000610,0.0311,83663.0,83662.0,1.11920854]
[1743903000819,0.00017939,83666.0,83665.0,0.0836988]
[1743903001016,0.05224,83668.0,83667.0,0.0836967]
[1743903001215,0.01190707,83672.0,83671.0,0.0836927]
[1743903001216,0.01182707,83672.0,83671.0,0.0836927]
[1743903001417,0.05184,83672.0,83671.0,0.10997062]
[1743903001614,0.00064,83672.0,83671.0,0.10990606]
[1743903001817,0.0302,83680.0,83679.0,0.0836847]
[1743903002015,0.08272,83680.0,83679.0,0.10100688]
[1743903003116,0.28272,83680.0,83679.0,0.10100688]
[1743903003914,0.28572,83680.0,83679.0,0.10100688]
[1743903004326,0.28672,83680.0,83679.0,0.10100688]
[1743903004617,0.26578,83680.0,83679.0,0.10032688]
[1743903004921,0.29868,83680.0,83679.0,0.10032688]
[1743903006417,0.29868,83680.0,83679.0,0.11678178]
[1743903006618,0.29868,83680.0,83679.0,0.11738178]
[1743903006820,0.29868,83680.0,83679.0,0.11678178]
[1743903007025,0.29868,83680.0,83679.0,0.11746178]
[1743903007324,0.29868,83680.0,83679.0,0.11761304]
[1743903008626,0.29868,83680.0,83679.0,0.11761058]
[1743903009625,0.3823637,83680.0,83679.0,0.11761058]
[1743903011426,0.3823637,83680.0,83679.0,0.10115568]
[1743903011728,0.29868,83680.0,83679.0,0.10115568]
[1743903012024,0.35044,83680.0,83679.0,0.10115568]
[1743903013127,0.35044,83680.0,83679.0,0.1176924]
[1743903013923,0.35044,83680.0,83679.0,0.1503924]
[1743903014628,0.4341237,83680.0,83679.0,0.1503924]
[1743903020341,0.4341237,83680.0,83679.0,0.1504745]
[1743903023944,0.4039237,83680.0,83679.0,0.1504745]
[1743903024140,0.20468,83680.0,83679.0,0.3904745]
[1743903024342,0.2564,83680.0,83679.0,0.4208745]
[1743903024731,0.20468,83680.0,83679.0,1.1990745]
[1743903024937,0.00017929,83688.0,83687.0,0.0836767]
[1743903025132,8e-05,83695.0,83691.0,0.0836727]
[1743903025347,0.00096,83695.0,83694.0,0.0836697]
[1743903025639,0.00096,83695.0,83694.0,0.34137471]
[1743903025945,0.00088,83695.0,83694.0,0.34158404]
[1743903026142,0.00088,83695.0,83694.0,0.75898404]
[1743903026341,0.00088,83695.0,83694.0,1.13628883]
[1743903026739,1.29402281,83700.0,83699.0,0.0836648]
[1743903027043,1.029352,83700.0,83699.0,0.80572393]
[1743903027541,1.029352,83700.0,83699.0,0.95572393]
[1743903027742,1.029352,83700.0,83699.0,1.01942393]
[1743903027944,1.029352,83700.0,83699.0,1.21792393]
[1743903027945,0.56521057,83700.0,83699.0,1.21792393]
[1743903028246,0.23867187,83700.0,83699.0,1.22031344]
[1743903028545,0.23763186,83700.0,83699.0,1.22031344]
[1743903028745,0.22866864,83700.0,83699.0,1.22031344]
[1743903029135,0.17521174,83700.0,83699.0,1.22031344]
[1743903029649,0.17521174,83700.0,83699.0,1.22044719]
[1743903030343,4e-08,83700.0,83699.0,1.22044719]
[1743903030545,3e-08,83705.0,83704.0,0.2821598]
[1743903030751,3e-08,83705.0,83704.0,0.95124789]
[1743903031050,0.05184,83728.0,83704.0,0.95124789]
[1743903031051,8e-05,83727.0,83724.0,0.0836398]
[1743903031344,0.8950268,83725.0,83724.0,1.15908789]
[1743903031536,0.8950268,83725.0,83724.0,1.16012789]
[1743903031940,0.8950268,83725.0,83724.0,1.22092789]
[1743903032143,0.3687663,83725.0,83724.0,1.49278458]
[1743903032342,0.21417303,83733.0,83732.0,0.0836318]
[1743903032541,0.21425303,83733.0,83732.0,0.74279989]
[1743903032748,0.21417303,83733.0,83732.0,0.74279989]
[1743903032949,0.00017916,83733.0,83732.0,0.74279989]
[1743903033248,0.00017916,83733.0,83732.0,0.74930468]
[1743903034645,0.00017916,83733.0,83732.0,0.47930468]
[1743903034851,0.00017916,83733.0,83732.0,0.74930468]
[1743903035552,0.00017916,83733.0,83732.0,0.78210468]
[1743903036142,0.00017916,83733.0,83732.0,0.93053838]
[1743903042154,0.00017916,83733.0,83732.0,0.93036676]
[1743903043355,6e-08,83733.0,83732.0,0.93036676]
[1743903043559,6e-08,83737.0,83736.0,0.0836278]
[1743903043758,8e-05,83743.0,83736.0,0.52017797]
[1743903043955,0.92065706,83750.0,83749.0,0.0836148]
[1743903044163,0.06518,83764.0,83749.0,0.0836148]
[1743903044164,0.6211147,83775.0,83749.0,1.11703017]
[1743903044363,0.6211147,83775.0,83774.0,0.0835898]
[1743903044549,0.4237619,83775.0,83774.0,0.50050829]
[1743903044859,0.3503201,83775.0,83774.0,0.68665106]
[1743903045262,0.3503201,83775.0,83774.0,0.11821736]
[1743903045453,0.3804201,83775.0,83774.0,0.11821736]
[1743903045849,0.3804201,83775.0,83774.0,0.11806343]
[1743903046955,0.63407126,83775.0,83774.0,0.04364893]
[1743903047160,1.22919126,83775.0,83774.0,0.04364893]
[1743903047362,1.42919126,83775.0,83774.0,0.04260893]
[1743903047560,0.0835968,83767.0,83766.0,0.00017916]
[1743903047758,0.1254096,83759.0,83758.0,0.0836053]
[1743903048061,0.0836068,83757.0,83749.0,0.3608]
[1743903048256,0.0836068,83757.0,83750.0,0.0836134]
[1743903048454,0.40366906,83757.0,83749.0,0.3608]
[1743903048653,0.31746906,83757.0,83749.0,0.3608]
[1743903049061,0.0836108,83754.0,83752.0,0.0836111]
[1743903049259,0.0836138,83750.0,83749.0,0.4444128]
[1743903049464,0.0836138,83750.0,83749.0,0.4454528]
[1743903049656,0.25367606,83750.0,83749.0,0.4454528]
[1743903050260,0.25367606,83750.0,83749.0,0.01010778]
[1743903050465,0.25367606,83750.0,83749.0,0.09268258]
[1743903050768,0.0836148,83749.0,83748.0,0.00017916]
[1743903051068,0.28477706,83749.0,83748.0,0.00017916]
[1743903051370,0.34777706,83749.0,83748.0,0.00017916]
[1743903052061,0.34777706,83749.0,83748.0,0.08379446]
[1743903052268,0.40045706,83749.0,83748.0,0.08379446]
[1743903052658,0.60045706,83749.0,83748.0,0.08379446]
[1743903053054,0.46416226,83749.0,83748.0,0.08379446]
[1743903053261,0.51688226,83749.0,83748.0,0.08483446]
[1743903053469,0.51688226,83749.0,83748.0,0.08379446]
[1743903053961,0.51688226,83749.0,83748.0,0.08491446]
[1743903054162,0.51688226,83749.0,83748.0,0.0939622]
[1743903054760,0.51684226,83749.0,83748.0,0.0939622]
[1743903059175,0.60045706,83749.0,83748.0,0.0939622]
[1743903059670,0.60045706,83749.0,83748.0,0.11125347]
[1743903060176,0.60045706,83749.0,83748.0,0.12800182]
[1743903060578,0.60045706,83749.0,83748.0,0.12799499]
[1743903061674,0.59149716,83749.0,83748.0,0.04437969]
[1743903061881,0.59149716,83749.0,83748.0,0.04325969]
[1743903062477,0.59149716,83749.0,83748.0,0.12687549]
[1743903062863,0.59149716,83749.0,83748.0,0.04325969]
[1743903063063,0.0836258,83738.0,83737.0,0.00238843]
[1743903063264,0.0836258,83738.0,83737.0,0.02075102]
[1743903063474,0.25368806,83738.0,83737.0,0.02075102]
[1743903063675,0.31748806,83738.0,83737.0,0.02950023]
[1743903064077,0.0836288,83735.0,83729.0,0.28312807]
[1743903064278,0.1363888,83735.0,83731.0,0.0836318]
[1743903064577,0.30645106,83735.0,83731.0,0.0836318]
[1743903064966,0.30705107,83735.0,83734.0,0.21310605]
[1743903065972,0.50705107,83735.0,83734.0,0.00969495]
[1743903066172,0.50705107,83735.0,83734.0,0.00893495]
[1743903066374,0.0836298,83734.0,83733.0,0.0836307]
[1743903066680,0.31703206,83734.0,83733.0,0.0836307]
[1743903067383,0.34963206,83734.0,83733.0,0.0843907]
[1743903067684,0.54963206,83734.0,83733.0,0.0836307]
[1743903067875,0.0836308,83733.0,83732.0,0.0836316]
[1743903068182,0.25429307,83733.0,83732.0,0.0836316]
[1743903068383,0.31629307,83733.0,83732.0,0.0836316]
[1743903069678,0.31629307,83733.0,83732.0,0.0843916]
[1743903069978,0.51629307,83733.0,83732.0,0.00076]
[1743903070183,0.0836328,83731.0,83730.0,0.0418168]
[1743903070482,0.44503281,83731.0,83730.0,0.0418168]
[1743903070783,0.61509507,83731.0,83730.0,0.0418168]
[1743903070985,0.67709507,83731.0,83730.0,0.0418168]
[1743903071581,0.87709507,83731.0,83730.0,0.0418168]
[1743903072184,0.0836338,83730.0,83729.0,0.00017916]
[1743903072374,0.25429607,83730.0,83729.0,0.00017916]
[1743903072676,0.31999607,83730.0,83729.0,0.00017916]
[1743903073078,0.51999607,83730.0,83729.0,0.00017916]
[1743903073483,0.51999607,83730.0,83729.0,0.00913463]
[1743903073781,0.51999607,83730.0,83729.0,0.00017916]
[1743903074778,0.40356227,83730.0,83729.0,0.08381396]
[1743903075087,0.40356227,83730.0,83729.0,0.09269146]
[1743903075287,0.45620227,83730.0,83729.0,0.10997701]
[1743903075487,0.53983607,83730.0,83729.0,0.17107701]
[1743903075681,0.45620227,83730.0,83729.0,0.17107701]
[1743903075881,0.20060001,83730.0,83729.0,0.17107701]
[1743903076089,0.25320001,83730.0,83729.0,0.18795969]
[1743903076589,0.25320001,83730.0,83729.0,0.18797391]
[1743903076980,0.25320001,83730.0,83729.0,0.38647391]
[1743903077580,0.20060001,83730.0,83729.0,0.38647391]
[1743903078188,0.20060001,83730.0,83729.0,0.38656792]
[1743903080085,0.20060001,83730.0,83729.0,0.38653956]
[1743903081191,0.20060001,83730.0,83729.0,0.59888561]
[1743903082185,0.28423381,83730.0,83729.0,0.40036284]
[1743903082692,0.28423381,83730.0,83729.0,0.31672804]
[1743903083179,0.28423381,83730.0,83729.0,0.40036284]
[1743903083581,0.33679381,83730.0,83729.0,0.40036284]
[1743903084492,0.33679381,83730.0,83729.0,0.18801679]
[1743903086278,0.50685607,83730.0,83729.0,0.10438199]
[1743903086484,0.50685607,83730.0,83729.0,0.07388199]
[1743903086687,0.53765607,83730.0,83729.0,0.07388199]
[1743903087489,0.53765607,83730.0,83729.0,0.07401627]
[1743903088894,0.53765607,83730.0,83729.0,0.04341627]
[1743903089297,0.53765607,83730.0,83729.0,0.04344277]
[1743903090994,0.89845607,83730.0,83729.0,0.04344277]
[1743903091196,0.0836368,83727.0,83726.0,0.28312807]
[1743903091596,0.25369906,83727.0,83726.0,0.28312807]
[1743903091895,0.37006226,83727.0,83726.0,0.72337226]
[1743903092100,0.37006226,83727.0,83726.0,0.09257226]
[1743903092287,0.45369906,83727.0,83726.0,0.09257226]
[1743903092489,0.45369906,83727.0,83726.0,0.00893446]
[1743903092687,0.0836388,83725.0,83724.0,0.064]
[1743903092884,0.25370106,83725.0,83724.0,0.064]
[1743903093094,0.0836398,83724.0,83723.0,0.36676887]
[1743903093293,0.31700206,83724.0,83723.0,0.36676887]
[1743903093784,0.1469398,83724.0,83723.0,0.36676887]
[1743903093987,0.31700206,83724.0,83723.0,0.36676887]
[1743903094195,0.31700206,83724.0,83723.0,0.28312807]
[1743903094790,0.31700206,83724.0,83723.0,0.29319517]
[1743903094989,0.51768206,83724.0,83723.0,0.37751597]
[1743903095193,0.51768206,83724.0,83723.0,0.29387517]
[1743903095598,0.51768206,83724.0,83723.0,0.0107471]
[1743903095802,0.51768206,83724.0,83723.0,0.0100671]
[1743903096202,0.51768206,83724.0,83723.0,0.0110671]
[1743903096703,0.51768206,83724.0,83723.0,0.0947079]
[1743903097104,0.51768206,83724.0,83723.0,0.0953079]
[1743903097302,0.48608206,83724.0,83723.0,0.0953079]
[1743903097501,0.53864206,83724.0,83723.0,0.1285079]
[1743903097701,0.48608206,83724.0,83723.0,0.1285079]
[1743903098001,0.53876206,83724.0,83723.0,0.1285079]
[1743903099007,0.48608206,83724.0,83723.0,0.1285079]
[1743903099209,0.53876206,83724.0,83723.0,0.1285079]
[1743903101109,0.48608206,83724.0,83723.0,0.1285079]
[1743903101302,0.53868206,83724.0,83723.0,0.1285079]
[1743903102808,0.53868206,83724.0,83723.0,0.0116671]
[1743903102998,0.53868206,83724.0,83723.0,0.29696207]
[1743903103202,0.53868206,83724.0,83723.0,0.31354962]
[1743903103404,0.56928206,83724.0,83723.0,0.31354962]
[1743903103605,0.56928206,83724.0,83723.0,0.39719042]
[1743903103908,0.56928206,83724.0,83723.0,0.3971688]
[1743903105610,0.56928206,83724.0,83723.0,0.313528]
[1743903106697,0.56932206,83724.0,83723.0,0.313528]
[1743903106897,0.51668206,83724.0,83723.0,0.3971688]
[1743903107103,0.56932206,83724.0,83723.0,0.11187383]
[1743903107612,0.56932206,83724.0,83723.0,0.11181222]
[1743903108004,0.37074226,83724.0,83723.0,0.47261222]
[1743903108404,0.37074226,83724.0,83723.0,0.4561079]
[1743903108604,0.37074226,83724.0,83723.0,0.1275079]
[1743903109006,0.45438206,83724.0,83723.0,0.1275079]
[1743903110408,0.37074226,83724.0,83723.0,0.1275079]
[1743903111016,0.42334226,83724.0,83723.0,0.3775079]
[1743903111421,0.42334226,83724.0,83723.0,0.1275079]
[1743903112207,0.42334226,83724.0,83723.0,0.3675079]
[1743903112409,0.42334226,83724.0,83723.0,0.1275079]
[1743903113710,0.25328,83724.0,83723.0,0.3675079]
[1743903114216,0.25328,83724.0,83723.0,0.1275079]
[1743903115315,0.50698206,83724.0,83723.0,0.1600079]
[1743903115917,0.50698206,83724.0,83723.0,0.1278079]
[1743903116104,0.50698206,83724.0,83723.0,0.0953079]
[1743903116309,0.50698206,83724.0,83723.0,0.0116671]
[1743903117019,0.50698206,83724.0,83709.0,0.04196106]
[1743903117020,0.0836548,83709.0,83701.0,0.083662]
[1743903117320,0.0836628,83702.0,83700.0,0.0418315]
[1743903117520,0.08470281,83702.0,83701.0,0.083662]
[1743903117711,0.44550281,83702.0,83701.0,0.084342]